[Event "Early-Titled-Tuesday-Blitz-March-12-2024"]
[Site "Chess.com"]
[Date "2024.03.12"]
[Round "2"]
[White "PepeCuenca"]
[Black "AnishOnYoutube"]
[Result "0-1"]
[WhiteElo "2702"]
[BlackElo "3055"]
[TimeControl "180+1"]
[EndTime "8:18:04 PDT"]
[Termination "AnishOnYoutube won on time"]

1. d4 {[%clk 0:03:00.9]} 1... Nf6 {[%clk 0:02:58.8]} 2. Bf4 {[%clk 0:03:00.9]}
2... g6 {[%clk 0:02:58.6]} 3. Nc3 {[%clk 0:03:00.3]} 3... d5 {[%clk 0:02:58.3]}
4. e3 {[%clk 0:03:00.9]} 4... Bg7 {[%clk 0:02:58.6]} 5. h4 {[%clk 0:03:01.5]}
5... h5 {[%clk 0:02:58.3]} 6. Nf3 {[%clk 0:03:01.4]} 6... O-O {[%clk 0:02:57.8]}
7. Nb5 {[%clk 0:02:59.2]} 7... Na6 {[%clk 0:02:56.9]} 8. Be2 {[%clk 0:02:56.6]}
8... Ne4 {[%clk 0:02:52.5]} 9. Ng5 {[%clk 0:02:40.7]} 9... c6 {[%clk 0:02:48.5]}
10. Nxe4 {[%clk 0:02:28.7]} 10... dxe4 {[%clk 0:02:48.5]} 11. Nc3 {[%clk
0:02:27.4]} 11... c5 {[%clk 0:02:48.6]} 12. Nb5 {[%clk 0:02:03.6]} 12... Bd7
{[%clk 0:02:12.2]} 13. a4 {[%clk 0:01:58.6]} 13... cxd4 {[%clk 0:02:09.1]} 14.
exd4 {[%clk 0:01:56.1]} 14... Nb4 {[%clk 0:02:09.4]} 15. c3 {[%clk 0:01:22.4]}
15... Nd5 {[%clk 0:02:04.6]} 16. Bg5 {[%clk 0:01:17.6]} 16... a6 {[%clk
0:01:52.3]} 17. Na3 {[%clk 0:01:16.6]} 17... Re8 {[%clk 0:01:35.6]} 18. O-O
{[%clk 0:01:13.2]} 18... Qc7 {[%clk 0:01:35.9]} 19. Nc4 {[%clk 0:00:59.7]} 19...
b5 {[%clk 0:00:53.9]} 20. axb5 {[%clk 0:00:55.1]} 20... axb5 {[%clk 0:00:54.4]}
21. Ne3 {[%clk 0:00:41.6]} 21... Rxa1 {[%clk 0:00:43.9]} 22. Qxa1 {[%clk
0:00:42.5]} 22... Nf4 {[%clk 0:00:44.2]} 23. Bxf4 {[%clk 0:00:36.6]} 23... Qxf4
{[%clk 0:00:44.5]} 24. Qa7 {[%clk 0:00:32.7]} 24... Qd6 {[%clk 0:00:41.6]} 25.
Qb7 {[%clk 0:00:20.6]} 25... Bc6 {[%clk 0:00:39]} 26. Qb6 {[%clk 0:00:04.2]}
26... Rb8 {[%clk 0:00:38.6]} 27. Qc5 {[%clk 0:00:03.7]} 27... Qxc5 {[%clk
0:00:38.2]} 28. dxc5 {[%clk 0:00:04.6]} 28... b4 {[%clk 0:00:38.5]} 29. Rc1
{[%clk 0:00:01.6]} 29... bxc3 {[%clk 0:00:37.3]} 30. bxc3 {[%clk 0:00:02.5]}
30... e6 {[%clk 0:00:34.2]} 31. Nc4 {[%clk 0:00:02]} 31... Rc8 {[%clk
0:00:27.8]} 32. Na5 {[%clk 0:00:01.8]} 32... Ba8 {[%clk 0:00:23.6]} 33. c6
{[%clk 0:00:01.9]} 33... Bxc6 {[%clk 0:00:24]} 34. Nxc6 {[%clk 0:00:02]} 34...
Rxc6 {[%clk 0:00:24.9]} 35. c4 {[%clk 0:00:02.1]} 35... Bd4 {[%clk 0:00:24.5]}
36. Rc2 {[%clk 0:00:02]} 36... e5 {[%clk 0:00:23.8]} 37. g3 {[%clk 0:00:02]}
37... f5 {[%clk 0:00:21.6]} 38. Kg2 {[%clk 0:00:02.4]} 38... Kg7 {[%clk
0:00:20.7]} 39. Ra2 {[%clk 0:00:03]} 39... Rb6 {[%clk 0:00:18.9]} 40. Rc2 {[%clk
0:00:03.2]} 40... Bc5 {[%clk 0:00:19]} 41. Ra2 {[%clk 0:00:03.3]} 41... Rb1
{[%clk 0:00:18.1]} 42. Rc2 {[%clk 0:00:02.4]} 42... Kf6 {[%clk 0:00:17.7]} 43.
Ra2 {[%clk 0:00:02.8]} 43... f4 {[%clk 0:00:18.3]} 44. Ra6+ {[%clk 0:00:02.3]}
44... Kf7 {[%clk 0:00:13.7]} 45. gxf4 {[%clk 0:00:02.2]} 45... exf4 {[%clk
0:00:14.6]} 46. f3 {[%clk 0:00:01.3]} 46... Rb2 {[%clk 0:00:14.8]} 47. Kf1
{[%clk 0:00:01.1]} 47... exf3 {[%clk 0:00:15.3]} 48. Bxf3 {[%clk 0:00:01.4]}
48... Rf2+ {[%clk 0:00:15.6]} 49. Ke1 {[%clk 0:00:02.1]} 49... Rxf3 {[%clk
0:00:16.1]} 0-1

[Event "Early-Titled-Tuesday-Blitz-March-12-2024"]
[Site "Chess.com"]
[Date "2024.03.12"]
[Round "2"]
[White "KnobbedHornbill"]
[Black "Akhayan"]
[Result "1/2-1/2"]
[WhiteElo "2544"]
[BlackElo "2318"]
[TimeControl "180+1"]
[EndTime "8:18:04 PDT"]
[Termination "Game drawn by repetition"]

1. d4 {[%clk 0:03:00.9]} 1... f5 {[%clk 0:02:59.1]} 2. c4 {[%clk 0:03:01.6]}
2... Nf6 {[%clk 0:02:59.5]} 3. Nf3 {[%clk 0:03:02.4]} 3... e6 {[%clk 0:02:58.7]}
4. e3 {[%clk 0:03:03.3]} 4... c6 {[%clk 0:02:58.7]} 5. Bd3 {[%clk 0:03:03.9]}
5... d5 {[%clk 0:02:59.2]} 6. O-O {[%clk 0:03:04.4]} 6... Bd6 {[%clk 0:02:59.7]}
7. b3 {[%clk 0:03:04.9]} 7... O-O {[%clk 0:03:00.2]} 8. Ba3 {[%clk 0:03:05.2]}
8... Bxa3 {[%clk 0:02:57.7]} 9. Nxa3 {[%clk 0:03:06.1]} 9... Ne4 {[%clk
0:02:58]} 10. b4 {[%clk 0:03:05.8]} 10... Bd7 {[%clk 0:02:54.3]} 11. b5 {[%clk
0:03:05.6]} 11... Be8 {[%clk 0:02:53.9]} 12. Ne5 {[%clk 0:03:01.9]} 12... Nd7
{[%clk 0:02:49.2]} 13. bxc6 {[%clk 0:03:01.4]} 13... Nxe5 {[%clk 0:02:49.1]} 14.
cxb7 {[%clk 0:02:50.9]} 14... Rb8 {[%clk 0:02:46]} 15. dxe5 {[%clk 0:02:49.4]}
15... Rxb7 {[%clk 0:02:46.3]} 16. cxd5 {[%clk 0:02:49.7]} 16... exd5 {[%clk
0:02:40.4]} 17. Nc2 {[%clk 0:02:47.9]} 17... Ba4 {[%clk 0:02:35.5]} 18. Bxe4
{[%clk 0:02:17.6]} 18... fxe4 {[%clk 0:02:28.8]} 19. Rb1 {[%clk 0:02:10.8]}
19... Rc7 {[%clk 0:02:23.8]} 20. Rb2 {[%clk 0:02:10.4]} 20... Qd7 {[%clk
0:02:08.5]} 21. Qd2 {[%clk 0:02:09.6]} 21... Bb5 {[%clk 0:01:59.7]} 22. Rd1
{[%clk 0:01:59.3]} 22... Bd3 {[%clk 0:02:00.1]} 23. Nb4 {[%clk 0:01:59.6]} 23...
Bc4 {[%clk 0:01:43.9]} 24. Nxd5 {[%clk 0:01:54.9]} 24... Bxd5 {[%clk 0:01:43]}
25. Qa5 {[%clk 0:01:22.2]} 25... Qf7 {[%clk 0:01:16.3]} 26. Rbd2 {[%clk
0:01:14.4]} 26... Be6 {[%clk 0:01:13]} 27. h3 {[%clk 0:01:14.1]} 27... Rd7
{[%clk 0:01:05.7]} 28. Qa4 {[%clk 0:01:08.2]} 28... Rxd2 {[%clk 0:01:02.4]} 29.
Rxd2 {[%clk 0:01:09.1]} 29... Bf5 {[%clk 0:00:53.2]} 30. Qd4 {[%clk 0:00:51.8]}
30... h6 {[%clk 0:00:50.3]} 31. a4 {[%clk 0:00:51.6]} 31... Kh7 {[%clk
0:00:41.7]} 32. a5 {[%clk 0:00:43.7]} 32... a6 {[%clk 0:00:38.8]} 33. Qb6 {[%clk
0:00:41.2]} 33... Qe6 {[%clk 0:00:34.1]} 34. Qc5 {[%clk 0:00:34.2]} 34... Re8
{[%clk 0:00:31.8]} 35. Rd6 {[%clk 0:00:33]} 35... Qxe5 {[%clk 0:00:29.9]} 36.
Qxe5 {[%clk 0:00:33.9]} 36... Rxe5 {[%clk 0:00:29.3]} 37. Rxa6 {[%clk
0:00:34.8]} 37... Be6 {[%clk 0:00:26.8]} 38. Ra7 {[%clk 0:00:33]} 38... Bc4
{[%clk 0:00:26.9]} 39. g4 {[%clk 0:00:31.5]} 39... Bd3 {[%clk 0:00:27.2]} 40.
Kg2 {[%clk 0:00:31.6]} 40... Kg6 {[%clk 0:00:27.1]} 41. Kg3 {[%clk 0:00:32.2]}
41... Rb5 {[%clk 0:00:25.5]} 42. h4 {[%clk 0:00:32.7]} 42... Rb1 {[%clk
0:00:25.4]} 43. h5+ {[%clk 0:00:28.9]} 43... Kf6 {[%clk 0:00:24.6]} 44. f3
{[%clk 0:00:26.5]} 44... exf3 {[%clk 0:00:23.6]} 45. Kxf3 {[%clk 0:00:26.5]}
45... Ra1 {[%clk 0:00:24.2]} 46. Rd7 {[%clk 0:00:24]} 46... Bb5 {[%clk
0:00:22.8]} 47. Rd6+ {[%clk 0:00:24]} 47... Ke5 {[%clk 0:00:21.8]} 48. Rg6
{[%clk 0:00:23.7]} 48... Rxa5 {[%clk 0:00:20.3]} 49. Rxg7 {[%clk 0:00:23.9]}
49... Bc6+ {[%clk 0:00:19.8]} 50. Kg3 {[%clk 0:00:23.6]} 50... Be4 {[%clk
0:00:19.3]} 51. Re7+ {[%clk 0:00:22]} 51... Kd5 {[%clk 0:00:19]} 52. Re8 {[%clk
0:00:19.9]} 52... Ra1 {[%clk 0:00:18.3]} 53. Rd8+ {[%clk 0:00:18.3]} 53... Ke5
{[%clk 0:00:18.3]} 54. Re8+ {[%clk 0:00:19]} 54... Kd5 {[%clk 0:00:18.7]} 55.
Rd8+ {[%clk 0:00:19.6]} 55... Ke5 {[%clk 0:00:19.2]} 56. Re8+ {[%clk 0:00:19.8]}
56... Kd5 {[%clk 0:00:18.9]} 1/2-1/2

[Event "Early-Titled-Tuesday-Blitz-March-12-2024"]
[Site "Chess.com"]
[Date "2024.03.12"]
[Round "2"]
[White "jraosam"]
[Black "Rosh1610"]
[Result "0-1"]
[WhiteElo "1977"]
[BlackElo "2473"]
[TimeControl "180+1"]
[EndTime "8:18:04 PDT"]
[Termination "Rosh1610 won on time"]

1. Nf3 {[%clk 0:02:58.4]} 1... d5 {[%clk 0:02:59.6]} 2. c4 {[%clk 0:02:57.9]}
2... d4 {[%clk 0:02:59.3]} 3. e3 {[%clk 0:02:57.9]} 3... c5 {[%clk 0:02:59.1]}
4. b4 {[%clk 0:02:56.3]} 4... dxe3 {[%clk 0:02:53.3]} 5. fxe3 {[%clk 0:02:56.9]}
5... cxb4 {[%clk 0:02:52.4]} 6. d4 {[%clk 0:02:54.1]} 6... e6 {[%clk 0:02:52.6]}
7. Bd3 {[%clk 0:02:49.8]} 7... Nc6 {[%clk 0:02:51.3]} 8. O-O {[%clk 0:02:49.7]}
8... Be7 {[%clk 0:02:51]} 9. Nbd2 {[%clk 0:02:48.4]} 9... Nf6 {[%clk 0:02:50.9]}
10. Bb2 {[%clk 0:02:47.8]} 10... O-O {[%clk 0:02:50.2]} 11. e4 {[%clk
0:02:47.7]} 11... Ng4 {[%clk 0:02:35.1]} 12. Qe2 {[%clk 0:02:45.3]} 12... Nf6
{[%clk 0:02:08.7]} 13. e5 {[%clk 0:02:38.8]} 13... Nh5 {[%clk 0:02:04.7]} 14.
Be4 {[%clk 0:02:17]} 14... Nf4 {[%clk 0:01:57.4]} 15. Qe3 {[%clk 0:02:15.8]}
15... Ng6 {[%clk 0:01:57.9]} 16. d5 {[%clk 0:02:05]} 16... exd5 {[%clk
0:01:38.3]} 17. cxd5 {[%clk 0:02:05.9]} 17... Na5 {[%clk 0:01:38.1]} 18. d6
{[%clk 0:02:04.2]} 18... Bxd6 {[%clk 0:01:28.9]} 19. exd6 {[%clk 0:02:02.3]}
19... Qxd6 {[%clk 0:01:29.8]} 20. Rad1 {[%clk 0:01:55.9]} 20... Qb6 {[%clk
0:00:58.3]} 21. Bd4 {[%clk 0:01:52.9]} 21... Qc7 {[%clk 0:00:58.3]} 22. Rc1
{[%clk 0:01:42.7]} 22... Qf4 {[%clk 0:00:57.3]} 23. Bxg6 {[%clk 0:01:21.3]}
23... Qxe3+ {[%clk 0:00:56.1]} 24. Bxe3 {[%clk 0:01:21.7]} 24... hxg6 {[%clk
0:00:54.7]} 25. Bc5 {[%clk 0:01:21.7]} 25... Rd8 {[%clk 0:00:49.2]} 26. Bxb4
{[%clk 0:01:21.4]} 26... Nc6 {[%clk 0:00:49.2]} 27. Bc3 {[%clk 0:01:21.4]} 27...
Be6 {[%clk 0:00:48.5]} 28. Nb3 {[%clk 0:01:21.5]} 28... Rac8 {[%clk 0:00:46.5]}
29. Rfd1 {[%clk 0:01:19.6]} 29... Rxd1+ {[%clk 0:00:40]} 30. Rxd1 {[%clk
0:01:20.5]} 30... Ne7 {[%clk 0:00:39.5]} 31. Bd4 {[%clk 0:01:18.9]} 31... Nd5
{[%clk 0:00:37.3]} 32. Rc1 {[%clk 0:01:14.2]} 32... Rd8 {[%clk 0:00:27]} 33. Ng5
{[%clk 0:00:56.6]} 33... Nf4 {[%clk 0:00:22.2]} 34. Kf1 {[%clk 0:00:11.6]} 34...
Bd5 {[%clk 0:00:15.3]} 35. Bxa7 {[%clk 0:00:07.6]} 35... Bxg2+ {[%clk
0:00:14.8]} 36. Kg1 {[%clk 0:00:08.2]} 36... Bd5 {[%clk 0:00:13.9]} 37. Rd1
{[%clk 0:00:06.7]} 37... f6 {[%clk 0:00:12.3]} 38. Nf3 {[%clk 0:00:02.8]} 38...
Nh3+ {[%clk 0:00:11.7]} 0-1

[Event "Early-Titled-Tuesday-Blitz-March-12-2024"]
[Site "Chess.com"]
[Date "2024.03.12"]
[Round "2"]
[White "kpio91"]
[Black "volodja49"]
[Result "0-1"]
[WhiteElo "2867"]
[BlackElo "2608"]
[TimeControl "180+1"]
[EndTime "8:18:05 PDT"]
[Termination "volodja49 won by resignation"]

1. c4 {[%clk 0:03:00.9]} 1... e6 {[%clk 0:02:59.4]} 2. Nf3 {[%clk 0:03:00.4]}
2... d5 {[%clk 0:03:00.1]} 3. e3 {[%clk 0:03:00.3]} 3... Nf6 {[%clk 0:03:00.3]}
4. Nc3 {[%clk 0:03:00.4]} 4... Be7 {[%clk 0:03:00]} 5. b3 {[%clk 0:03:00.7]}
5... O-O {[%clk 0:03:00.2]} 6. Bb2 {[%clk 0:03:01.1]} 6... c5 {[%clk 0:03:00.8]}
7. cxd5 {[%clk 0:02:59.5]} 7... Nxd5 {[%clk 0:03:01.7]} 8. Qc2 {[%clk
0:02:57.6]} 8... Nc6 {[%clk 0:03:01.1]} 9. h4 {[%clk 0:02:57.3]} 9... Nxc3
{[%clk 0:02:57]} 10. Bxc3 {[%clk 0:02:56]} 10... Bf6 {[%clk 0:02:57]} 11. Ng5
{[%clk 0:02:55.6]} 11... g6 {[%clk 0:02:56.6]} 12. f4 {[%clk 0:02:42.7]} 12...
Nb4 {[%clk 0:02:22.9]} 13. Qb2 {[%clk 0:02:39.4]} 13... Bxc3 {[%clk 0:02:20.2]}
14. Qxc3 {[%clk 0:02:24.9]} 14... Nd5 {[%clk 0:02:18.5]} 15. Qb2 {[%clk
0:01:59.7]} 15... b6 {[%clk 0:02:13.9]} 16. Bc4 {[%clk 0:01:58.9]} 16... Bb7
{[%clk 0:02:13.6]} 17. h5 {[%clk 0:01:55.1]} 17... Qf6 {[%clk 0:02:08.1]} 18.
O-O-O {[%clk 0:01:37]} 18... Qxb2+ {[%clk 0:01:54.7]} 19. Kxb2 {[%clk
0:01:36.5]} 19... Nf6 {[%clk 0:01:41.5]} 20. hxg6 {[%clk 0:01:18.1]} 20... hxg6
{[%clk 0:01:42.4]} 21. Rhg1 {[%clk 0:01:07.1]} 21... Ne4 {[%clk 0:01:21.7]} 22.
Nxe4 {[%clk 0:00:56.3]} 22... Bxe4 {[%clk 0:01:22.6]} 23. d4 {[%clk 0:00:56.7]}
23... Rfd8 {[%clk 0:01:10.3]} 24. dxc5 {[%clk 0:00:54.8]} 24... bxc5 {[%clk
0:01:11.2]} 25. g3 {[%clk 0:00:54]} 25... Kf8 {[%clk 0:01:05.7]} 26. Kc3 {[%clk
0:00:52.3]} 26... a5 {[%clk 0:01:04.3]} 27. a4 {[%clk 0:00:48.7]} 27... Ke7
{[%clk 0:01:03.5]} 28. Bb5 {[%clk 0:00:48.7]} 28... Bd5 {[%clk 0:00:58.8]} 29.
Rge1 {[%clk 0:00:47.7]} 29... f5 {[%clk 0:00:59]} 30. Bd3 {[%clk 0:00:43.9]}
30... Kf6 {[%clk 0:00:58.5]} 31. Bc2 {[%clk 0:00:40.3]} 31... Rab8 {[%clk
0:00:56.2]} 32. Rg1 {[%clk 0:00:38]} 32... Rdc8 {[%clk 0:00:51.3]} 33. Rb1
{[%clk 0:00:28.6]} 33... Rb4 {[%clk 0:00:49.8]} 34. g4 {[%clk 0:00:28.1]} 34...
c4 {[%clk 0:00:48.6]} 35. Kd2 {[%clk 0:00:19.7]} 35... cxb3 {[%clk 0:00:44]} 36.
Bd3 {[%clk 0:00:19.7]} 36... Rxa4 {[%clk 0:00:40.4]} 37. Rb2 {[%clk 0:00:19.9]}
37... Ra2 {[%clk 0:00:39.2]} 38. Rxa2 {[%clk 0:00:15.1]} 38... bxa2 {[%clk
0:00:38.7]} 39. g5+ {[%clk 0:00:16]} 39... Ke7 {[%clk 0:00:37.8]} 40. Ra1 {[%clk
0:00:16]} 40... Rb8 {[%clk 0:00:37.1]} 41. Kc3 {[%clk 0:00:14.5]} 41... a4
{[%clk 0:00:37.2]} 42. Bc2 {[%clk 0:00:13.7]} 42... a3 {[%clk 0:00:36.1]} 43.
Kd4 {[%clk 0:00:09.7]} 43... Kd6 {[%clk 0:00:34.2]} 44. Bd3 {[%clk 0:00:08.1]}
44... Rb2 {[%clk 0:00:29.4]} 45. Kc3 {[%clk 0:00:07.9]} 45... Kc5 {[%clk
0:00:28.5]} 46. Bc2 {[%clk 0:00:07.7]} 46... Kd6 {[%clk 0:00:22.5]} 47. Bd3
{[%clk 0:00:07.4]} 47... e5 {[%clk 0:00:22.4]} 48. Rc1 {[%clk 0:00:02.9]} 48...
Rb1 {[%clk 0:00:17.5]} 49. Rxb1 {[%clk 0:00:02.2]} 49... axb1=Q {[%clk
0:00:16.8]} 50. Bxb1 {[%clk 0:00:02.6]} 50... a2 {[%clk 0:00:17]} 0-1

[Event "Early-Titled-Tuesday-Blitz-March-12-2024"]
[Site "Chess.com"]
[Date "2024.03.12"]
[Round "2"]
[White "TanitoluwaAps116"]
[Black "el008"]
[Result "1-0"]
[WhiteElo "2836"]
[BlackElo "2527"]
[TimeControl "180+1"]
[EndTime "8:18:05 PDT"]
[Termination "TanitoluwaAps116 won by resignation"]

1. e4 {[%clk 0:02:55]} 1... c5 {[%clk 0:02:57.4]} 2. Nf3 {[%clk 0:02:54.1]} 2...
d6 {[%clk 0:02:56.5]} 3. Bb5+ {[%clk 0:02:52.8]} 3... Bd7 {[%clk 0:02:56.5]} 4.
Bxd7+ {[%clk 0:02:52.5]} 4... Nxd7 {[%clk 0:02:56.3]} 5. O-O {[%clk 0:02:52.5]}
5... Ngf6 {[%clk 0:02:56]} 6. Qe2 {[%clk 0:02:52.9]} 6... e6 {[%clk 0:02:54.1]}
7. b3 {[%clk 0:02:52.6]} 7... Be7 {[%clk 0:02:49.7]} 8. Bb2 {[%clk 0:02:52.8]}
8... O-O {[%clk 0:02:50.4]} 9. c4 {[%clk 0:02:52.3]} 9... Re8 {[%clk 0:02:44.4]}
10. Nc3 {[%clk 0:02:49]} 10... Ne5 {[%clk 0:02:43]} 11. Ne1 {[%clk 0:02:24.9]}
11... Nc6 {[%clk 0:02:34]} 12. Nc2 {[%clk 0:02:17.5]} 12... Nd7 {[%clk
0:02:06.7]} 13. f4 {[%clk 0:02:09.8]} 13... Bf6 {[%clk 0:02:05.5]} 14. Rae1
{[%clk 0:02:04.4]} 14... Nd4 {[%clk 0:01:51.9]} 15. Qd3 {[%clk 0:01:59.7]} 15...
a6 {[%clk 0:01:33]} 16. g4 {[%clk 0:01:51]} 16... Nxc2 {[%clk 0:01:30.4]} 17.
Qxc2 {[%clk 0:01:50.5]} 17... Bd4+ {[%clk 0:01:31]} 18. Kg2 {[%clk 0:01:49]}
18... Qh4 {[%clk 0:01:31.6]} 19. Qd1 {[%clk 0:01:17.9]} 19... g5 {[%clk
0:01:13.4]} 20. Re3 {[%clk 0:00:31.7]} 20... gxf4 {[%clk 0:01:01.5]} 21. Rh3
{[%clk 0:00:29.5]} 21... Qg5 {[%clk 0:01:00.8]} 22. Rh5 {[%clk 0:00:19.4]} 22...
Qg6 {[%clk 0:01:01.2]} 23. Rxf4 {[%clk 0:00:16.1]} 23... Nf6 {[%clk 0:00:53.4]}
24. Rh3 {[%clk 0:00:06.5]} 24... Be5 {[%clk 0:00:53.8]} 25. Rff3 {[%clk
0:00:06]} 25... Nxe4 {[%clk 0:00:49.4]} 26. Nxe4 {[%clk 0:00:04.8]} 26... Qxe4
{[%clk 0:00:49.9]} 27. d3 {[%clk 0:00:04.1]} 27... Qg6 {[%clk 0:00:45.9]} 28.
Bxe5 {[%clk 0:00:01.3]} 28... dxe5 {[%clk 0:00:46.8]} 29. Qe2 {[%clk 0:00:01.4]}
29... f6 {[%clk 0:00:38.7]} 30. g5 {[%clk 0:00:01.7]} 30... fxg5 {[%clk
0:00:13.9]} 31. Qxe5 {[%clk 0:00:01.4]} 31... g4 {[%clk 0:00:11.5]} 32. Rhg3
{[%clk 0:00:02]} 32... gxf3+ {[%clk 0:00:12]} 33. Kf2 {[%clk 0:00:02.3]} 33...
Rad8 {[%clk 0:00:10]} 34. Rxg6+ {[%clk 0:00:02.5]} 34... hxg6 {[%clk 0:00:10.9]}
35. Qe4 {[%clk 0:00:02.4]} 35... Kg7 {[%clk 0:00:10.1]} 36. Kxf3 {[%clk
0:00:02.6]} 36... Re7 {[%clk 0:00:09.8]} 37. Qe5+ {[%clk 0:00:02.9]} 37... Kf7
{[%clk 0:00:10.2]} 38. Qxc5 {[%clk 0:00:02.8]} 38... Rxd3+ {[%clk 0:00:09.8]}
39. Ke4 {[%clk 0:00:03.4]} 39... Rh3 {[%clk 0:00:08.8]} 40. Qe5 {[%clk
0:00:02.8]} 40... Rh4+ {[%clk 0:00:08.8]} 41. Ke3 {[%clk 0:00:03.3]} 41... Rh5
{[%clk 0:00:09.5]} 42. Qf4+ {[%clk 0:00:03.3]} 42... Rf5 {[%clk 0:00:10.2]} 43.
Qh6 {[%clk 0:00:03.6]} 43... Re5+ {[%clk 0:00:10.4]} 44. Kd4 {[%clk 0:00:03.7]}
44... Rh5 {[%clk 0:00:11.3]} 45. Qf4+ {[%clk 0:00:03.5]} 45... Kg7 {[%clk
0:00:11.5]} 46. Qd6 {[%clk 0:00:03.6]} 46... Kf8 {[%clk 0:00:11.3]} 47. a4
{[%clk 0:00:03.2]} 47... Rh4+ {[%clk 0:00:11.5]} 48. Kc3 {[%clk 0:00:03.5]}
48... e5 {[%clk 0:00:08.6]} 49. Qf6+ {[%clk 0:00:03.2]} 49... Ke8 {[%clk
0:00:08]} 50. Qxh4 {[%clk 0:00:04.1]} 1-0

[Event "Early-Titled-Tuesday-Blitz-March-12-2024"]
[Site "Chess.com"]
[Date "2024.03.12"]
[Round "2"]
[White "vovachesss"]
[Black "Mr_ruthless"]
[Result "1-0"]
[WhiteElo "2790"]
[BlackElo "2481"]
[TimeControl "180+1"]
[EndTime "8:18:05 PDT"]
[Termination "vovachesss won by resignation"]

1. d4 {[%clk 0:03:00.9]} 1... Nf6 {[%clk 0:03:00.1]} 2. c4 {[%clk 0:03:00.9]}
2... c5 {[%clk 0:02:56.4]} 3. d5 {[%clk 0:02:58]} 3... e6 {[%clk 0:02:56.9]} 4.
Nc3 {[%clk 0:02:57.2]} 4... exd5 {[%clk 0:02:57.4]} 5. cxd5 {[%clk 0:02:57.5]}
5... d6 {[%clk 0:02:58.3]} 6. Bf4 {[%clk 0:02:51.5]} 6... g6 {[%clk 0:02:57.7]}
7. e3 {[%clk 0:02:51.6]} 7... Nh5 {[%clk 0:02:45]} 8. Nf3 {[%clk 0:02:40.2]}
8... Nxf4 {[%clk 0:02:42.7]} 9. Qa4+ {[%clk 0:02:40.7]} 9... Nd7 {[%clk
0:02:39.8]} 10. Qxf4 {[%clk 0:02:41.6]} 10... Qf6 {[%clk 0:02:26.9]} 11. Qxf6
{[%clk 0:02:07.9]} 11... Nxf6 {[%clk 0:02:26.6]} 12. Nb5 {[%clk 0:02:08.8]}
12... Ke7 {[%clk 0:01:55.1]} 13. Nc3 {[%clk 0:01:32.5]} 13... Bg7 {[%clk
0:01:51.8]} 14. Nd2 {[%clk 0:01:29.3]} 14... a6 {[%clk 0:01:46.3]} 15. a4 {[%clk
0:01:29]} 15... b6 {[%clk 0:01:46.4]} 16. Nc4 {[%clk 0:01:27.4]} 16... Rb8
{[%clk 0:01:41.5]} 17. f3 {[%clk 0:01:25.7]} 17... Bd7 {[%clk 0:01:03.8]} 18. e4
{[%clk 0:00:58]} 18... Ne8 {[%clk 0:01:03.7]} 19. Kd2 {[%clk 0:00:53.8]} 19...
Nc7 {[%clk 0:01:03.5]} 20. Bd3 {[%clk 0:00:46.2]} 20... b5 {[%clk 0:01:03.3]}
21. axb5 {[%clk 0:00:43.3]} 21... axb5 {[%clk 0:01:04.2]} 22. Na5 {[%clk
0:00:26.2]} 22... Ra8 {[%clk 0:00:54.7]} 23. Nc6+ {[%clk 0:00:22.7]} 23... Bxc6
{[%clk 0:00:53.1]} 24. dxc6 {[%clk 0:00:23.6]} 24... c4 {[%clk 0:00:52.8]} 25.
Be2 {[%clk 0:00:18.6]} 25... Bd4 {[%clk 0:00:36.2]} 26. Kc2 {[%clk 0:00:17.2]}
26... g5 {[%clk 0:00:14]} 27. Rhd1 {[%clk 0:00:16.3]} 27... Be5 {[%clk
0:00:14.5]} 28. g3 {[%clk 0:00:15.7]} 28... h5 {[%clk 0:00:14.4]} 29. Rxa8
{[%clk 0:00:12]} 29... Rxa8 {[%clk 0:00:15.3]} 30. Nd5+ {[%clk 0:00:12.6]} 30...
Kd8 {[%clk 0:00:12.2]} 31. f4 {[%clk 0:00:11.6]} 31... gxf4 {[%clk 0:00:10]} 32.
gxf4 {[%clk 0:00:12.5]} 32... Bh8 {[%clk 0:00:09.5]} 33. Nb6 {[%clk 0:00:12.6]}
33... Ra2 {[%clk 0:00:08.9]} 34. Rxd6+ {[%clk 0:00:12.3]} 34... Ke8 {[%clk
0:00:08.1]} 35. Nd5 {[%clk 0:00:08.9]} 35... Rxb2+ {[%clk 0:00:07.8]} 36. Kd1
{[%clk 0:00:09.3]} 36... Ne6 {[%clk 0:00:05.8]} 37. c7 {[%clk 0:00:04.7]} 37...
Nxc7 {[%clk 0:00:04.6]} 38. Nxc7+ {[%clk 0:00:05.6]} 38... Ke7 {[%clk
0:00:05.3]} 39. e5 {[%clk 0:00:06]} 39... c3 {[%clk 0:00:05.3]} 40. Nd5+ {[%clk
0:00:06.4]} 40... Ke8 {[%clk 0:00:04.6]} 41. Nxc3 {[%clk 0:00:06.9]} 1-0